[Event "*** Titled Tuesday Blitz"]
[Site "Chess.com"]
[Date "2020.05.05"]
[Round "7"]
[White "etesungam"]
[Black "GoValya"]
[Result "1-0"]
[WhiteElo "2336"]
[BlackElo "2167"]
[TimeControl "180+1"]
[EndTime "11:18:31 PDT"]
[Termination "etesungam won on time"]

1. d4 {[%clk 0:03:00.9]} 1... Nf6 {[%clk 0:02:57.1]} 2. Nf3 {[%clk 0:03:01.8]}
2... e6 {[%clk 0:02:57.3]} 3. c4 {[%clk 0:02:50.9]} 3... c5 {[%clk 0:02:56.8]}
4. d5 {[%clk 0:02:49.8]} 4... exd5 {[%clk 0:02:54.1]} 5. cxd5 {[%clk 0:02:48.7]}
5... d6 {[%clk 0:02:54.3]} 6. Nc3 {[%clk 0:02:47.7]} 6... g6 {[%clk 0:02:54.6]}
7. e4 {[%clk 0:02:48.1]} 7... Bg7 {[%clk 0:02:54.9]} 8. Bb5+ {[%clk 0:02:48.5]}
8... Bd7 {[%clk 0:02:53.3]} 9. a4 {[%clk 0:02:48.9]} 9... O-O {[%clk 0:02:53]}
10. O-O {[%clk 0:02:49.1]} 10... a6 {[%clk 0:02:52]} 11. Bxd7 {[%clk 0:02:48.3]}
11... Nbxd7 {[%clk 0:02:52.1]} 12. Bf4 {[%clk 0:02:48.9]} 12... Qc7 {[%clk
0:02:51.7]} 13. h3 {[%clk 0:02:47.5]} 13... Rfe8 {[%clk 0:02:49.1]} 14. Qc2
{[%clk 0:02:47.5]} 14... b6 {[%clk 0:02:43.8]} 15. Nd2 {[%clk 0:02:47]} 15...
Rab8 {[%clk 0:02:42.9]} 16. Nc4 {[%clk 0:02:45.5]} 16... Ne5 {[%clk 0:02:42.6]}
17. Bxe5 {[%clk 0:02:44.4]} 17... dxe5 {[%clk 0:02:41.4]} 18. Rfd1 {[%clk
0:02:42.7]} 18... b5 {[%clk 0:02:31.1]} 19. axb5 {[%clk 0:02:42]} 19... axb5
{[%clk 0:02:31.1]} 20. Na5 {[%clk 0:02:41.3]} 20... Nd7 {[%clk 0:02:13.7]} 21.
Nc6 {[%clk 0:02:40.4]} 21... Rb7 {[%clk 0:02:06.2]} 22. Qe2 {[%clk 0:02:40.3]}
22... c4 {[%clk 0:01:51]} 23. b4 {[%clk 0:02:22]} 23... cxb3 {[%clk 0:01:46.8]}
24. Nxb5 {[%clk 0:02:20.5]} 24... Rxb5 {[%clk 0:01:16.5]} 25. Qxb5 {[%clk
0:02:12.5]} 25... Qd6 {[%clk 0:01:16.1]} 26. Qxb3 {[%clk 0:02:10.2]} 26... Nc5
{[%clk 0:01:16.4]} 27. Qa3 {[%clk 0:02:08.3]} 27... Nxe4 {[%clk 0:01:14.7]} 28.
Qxd6 {[%clk 0:02:07.5]} 28... Nxd6 {[%clk 0:01:15]} 29. Ra7 {[%clk 0:02:06]}
29... e4 {[%clk 0:01:11]} 30. Rd7 {[%clk 0:02:03.7]} 30... Nf5 {[%clk
0:01:06.6]} 31. g4 {[%clk 0:02:02.2]} 31... Nh4 {[%clk 0:01:04.4]} 32. d6 {[%clk
0:02:00.3]} 32... Nf3+ {[%clk 0:01:01.7]} 33. Kg2 {[%clk 0:01:56.9]} 33... Bf6
{[%clk 0:00:53.4]} 34. Ne7+ {[%clk 0:01:55.4]} 34... Kg7 {[%clk 0:00:52.3]} 35.
Nd5 {[%clk 0:01:54.7]} 35... Bg5 {[%clk 0:00:44.9]} 36. Rb1 {[%clk 0:01:49.9]}
36... Nh4+ {[%clk 0:00:38.6]} 37. Kg3 {[%clk 0:01:48.6]} 37... h5 {[%clk
0:00:19.7]} 38. Rbb7 {[%clk 0:01:47.7]} 38... Rf8 {[%clk 0:00:19.9]} 39. Nc7
{[%clk 0:01:43.8]} 39... hxg4 {[%clk 0:00:19.7]} 40. Ne6+ {[%clk 0:01:43.3]}
40... Kf6 {[%clk 0:00:19.7]} 41. Nxf8 {[%clk 0:01:42.5]} 41... gxh3 {[%clk
0:00:19.9]} 42. Rxf7+ {[%clk 0:01:41.4]} 42... Ke5 {[%clk 0:00:19.6]} 43. d7
{[%clk 0:01:39.9]} 43... Nf5+ {[%clk 0:00:18.7]} 44. Rxf5+ {[%clk 0:01:37.6]}
44... gxf5 {[%clk 0:00:18.3]} 45. Kxh3 {[%clk 0:01:35.3]} 45... Be7 {[%clk
0:00:17.8]} 46. Ng6+ {[%clk 0:01:35]} 46... Kd6 {[%clk 0:00:18.2]} 47. Nxe7
{[%clk 0:01:35.9]} 47... Kxe7 {[%clk 0:00:18.5]} 48. Kg3 {[%clk 0:01:36.8]}
48... Kd8 {[%clk 0:00:17.3]} 49. Kf4 {[%clk 0:01:37.7]} 49... Ke7 {[%clk
0:00:17.7]} 50. Kxf5 {[%clk 0:01:38.1]} 50... e3 {[%clk 0:00:17.7]} 51. fxe3
{[%clk 0:01:36.9]} 51... Kd8 {[%clk 0:00:18.1]} 52. Ke5 {[%clk 0:01:36.5]} 52...
Ke7 {[%clk 0:00:18.2]} 53. Kd5 {[%clk 0:01:37]} 53... Kd8 {[%clk 0:00:18.7]} 54.
Kc6 {[%clk 0:01:37.3]} 54... Ke7 {[%clk 0:00:19]} 55. Kc7 {[%clk 0:01:37.2]} 1-0

[Event "*** Titled Tuesday Blitz"]
[Site "Chess.com"]
[Date "2020.05.05"]
[Round "7"]
[White "Redbandit87"]
[Black "Irina_Barchuk"]
[Result "1-0"]
[WhiteElo "2457"]
[BlackElo "2212"]
[TimeControl "180+1"]
[EndTime "11:18:32 PDT"]
[Termination "Redbandit87 won on time"]

1. d4 {[%clk 0:02:38.7]} 1... Nf6 {[%clk 0:02:57.9]} 2. Bf4 {[%clk 0:02:34.2]}
2... d6 {[%clk 0:02:38.3]} 3. Nc3 {[%clk 0:02:30.6]} 3... g6 {[%clk 0:02:35.1]}
4. Qd2 {[%clk 0:02:30.4]} 4... h5 {[%clk 0:02:26.2]} 5. O-O-O {[%clk 0:02:28.9]}
5... Bg7 {[%clk 0:02:23.9]} 6. e4 {[%clk 0:02:29]} 6... Nfd7 {[%clk 0:02:15.6]}
7. Nf3 {[%clk 0:02:25.2]} 7... c6 {[%clk 0:02:11.5]} 8. e5 {[%clk 0:02:13.9]}
8... d5 {[%clk 0:01:53.4]} 9. e6 {[%clk 0:02:10]} 9... fxe6 {[%clk 0:01:54.3]}
10. Bd3 {[%clk 0:02:06]} 10... Nf8 {[%clk 0:01:52.4]} 11. Ne5 {[%clk 0:01:53.6]}
11... Bxe5 {[%clk 0:01:48.1]} 12. Bxe5 {[%clk 0:01:54.5]} 12... Rg8 {[%clk
0:01:46]} 13. Qh6 {[%clk 0:01:49.5]} 13... Nbd7 {[%clk 0:01:39.6]} 14. Rde1
{[%clk 0:01:42.1]} 14... Nf6 {[%clk 0:01:34.2]} 15. f3 {[%clk 0:01:33.4]} 15...
Qa5 {[%clk 0:01:11.5]} 16. Qg5 {[%clk 0:01:11.8]} 16... N6h7 {[%clk 0:00:47.6]}
17. Qh6 {[%clk 0:01:04.6]} 17... Bd7 {[%clk 0:00:40.8]} 18. Bg7 {[%clk
0:00:55.6]} 18... O-O-O {[%clk 0:00:40.2]} 19. Bxg6 {[%clk 0:00:45.9]} 19...
Nxg6 {[%clk 0:00:32.4]} 20. Qxg6 {[%clk 0:00:38.7]} 20... Nf6 {[%clk 0:00:32.2]}
21. Qf7 {[%clk 0:00:29]} 21... b5 {[%clk 0:00:20.1]} 22. Kb1 {[%clk 0:00:23]}
22... b4 {[%clk 0:00:18.2]} 23. Ne2 {[%clk 0:00:19.3]} 23... Rde8 {[%clk
0:00:16.4]} 24. Nf4 {[%clk 0:00:16.5]} 24... c5 {[%clk 0:00:14.6]} 25. Nxe6
{[%clk 0:00:13.5]} 25... c4 {[%clk 0:00:11.7]} 26. Nc5 {[%clk 0:00:12.4]} 26...
Bf5 {[%clk 0:00:01.9]} 27. Bxf6 {[%clk 0:00:08.6]} 1-0

[Event "*** Titled Tuesday Blitz"]
[Site "Chess.com"]
[Date "2020.05.05"]
[Round "7"]
[White "chessdjw"]
[Black "VerdeNotte"]
[Result "0-1"]
[WhiteElo "2659"]
[BlackElo "2842"]
[TimeControl "180+1"]
[EndTime "11:18:33 PDT"]
[Termination "VerdeNotte won by resignation"]

1. e4 {[%clk 0:03:00.9]} 1... e5 {[%clk 0:02:51.3]} 2. Nf3 {[%clk 0:03:01.3]}
2... Nc6 {[%clk 0:02:50.8]} 3. Bb5 {[%clk 0:03:01.9]} 3... a6 {[%clk 0:02:51]}
4. Ba4 {[%clk 0:03:02.3]} 4... d6 {[%clk 0:02:51.4]} 5. O-O {[%clk 0:03:01.2]}
5... g6 {[%clk 0:02:51.6]} 6. c3 {[%clk 0:03:01.4]} 6... Bg7 {[%clk 0:02:51.6]}
7. d4 {[%clk 0:03:01.7]} 7... Bd7 {[%clk 0:02:52]} 8. Re1 {[%clk 0:02:58.7]}
8... Nf6 {[%clk 0:02:51]} 9. h3 {[%clk 0:02:57.5]} 9... O-O {[%clk 0:02:50.6]}
10. Bc2 {[%clk 0:02:55.2]} 10... exd4 {[%clk 0:02:45.9]} 11. cxd4 {[%clk
0:02:53.9]} 11... Nb4 {[%clk 0:02:46.2]} 12. Nc3 {[%clk 0:02:53.7]} 12... Nxc2
{[%clk 0:02:45.1]} 13. Qxc2 {[%clk 0:02:54.6]} 13... Re8 {[%clk 0:02:44.3]} 14.
Bf4 {[%clk 0:02:51.3]} 14... Bc6 {[%clk 0:02:31.6]} 15. d5 {[%clk 0:02:50.6]}
15... Bd7 {[%clk 0:02:31.5]} 16. Rad1 {[%clk 0:02:50.4]} 16... Nh5 {[%clk
0:02:30.1]} 17. Bh2 {[%clk 0:02:50.1]} 17... b5 {[%clk 0:02:18]} 18. Ne2 {[%clk
0:02:29.1]} 18... f5 {[%clk 0:02:10.7]} 19. Ned4 {[%clk 0:02:26.2]} 19... f4
{[%clk 0:02:03]} 20. Rd2 {[%clk 0:02:05.7]} 20... Rc8 {[%clk 0:02:00.1]} 21. Nc6
{[%clk 0:02:03.8]} 21... Qf6 {[%clk 0:01:56]} 22. Na7 {[%clk 0:01:48.2]} 22...
Ra8 {[%clk 0:01:55.1]} 23. Qxc7 {[%clk 0:01:39.1]} 23... Bxh3 {[%clk 0:01:52.8]}
24. gxh3 {[%clk 0:00:58.3]} 24... Re7 {[%clk 0:01:52.2]} 25. e5 {[%clk
0:00:58.4]} 25... dxe5 {[%clk 0:01:44.6]} 26. d6 {[%clk 0:00:58.8]} 26... Rxc7
{[%clk 0:01:39.9]} 27. dxc7 {[%clk 0:00:59.7]} 27... Bf8 {[%clk 0:00:56.7]} 28.
Rc1 {[%clk 0:00:20.5]} 28... e4 {[%clk 0:00:52.6]} 29. c8=Q {[%clk 0:00:15.6]}
29... Rxc8 {[%clk 0:00:52.3]} 30. Rxc8 {[%clk 0:00:16.5]} 30... exf3 {[%clk
0:00:47.9]} 31. Rdd8 {[%clk 0:00:16.3]} 31... Qg5+ {[%clk 0:00:43.6]} 32. Kf1
{[%clk 0:00:16.6]} 32... Qg2+ {[%clk 0:00:40.4]} 33. Ke1 {[%clk 0:00:16.9]}
33... Qxh2 {[%clk 0:00:37.7]} 34. Rxf8+ {[%clk 0:00:16.6]} 34... Kg7 {[%clk
0:00:38.3]} 35. Rg8+ {[%clk 0:00:15.2]} 35... Kh6 {[%clk 0:00:38.6]} 36. Nc6
{[%clk 0:00:11.1]} 36... Qg1+ {[%clk 0:00:38.2]} 37. Kd2 {[%clk 0:00:11.6]}
37... Qxf2+ {[%clk 0:00:38.6]} 38. Kc3 {[%clk 0:00:12.5]} 38... Qc5+ {[%clk
0:00:36.8]} 39. Kd3 {[%clk 0:00:12.5]} 39... f2 {[%clk 0:00:34.4]} 40. Nd4
{[%clk 0:00:12.3]} 40... f1=Q+ {[%clk 0:00:34]} 0-1

[Event "*** Titled Tuesday Blitz"]
[Site "Chess.com"]
[Date "2020.05.05"]
[Round "7"]
[White "icychess54"]
[Black "IljaJoke"]
[Result "0-1"]
[WhiteElo "2307"]
[BlackElo "2554"]
[TimeControl "180+1"]
[EndTime "11:18:35 PDT"]
[Termination "IljaJoke won on time"]

1. c4 {[%clk 0:03:00.9]} 1... g6 {[%clk 0:02:59.4]} 2. Nf3 {[%clk 0:02:59.1]}
2... Bg7 {[%clk 0:02:58.7]} 3. e3 {[%clk 0:02:59.3]} 3... c5 {[%clk 0:02:57.6]}
4. d4 {[%clk 0:02:58.8]} 4... cxd4 {[%clk 0:02:57.1]} 5. Nxd4 {[%clk 0:02:58.5]}
5... Nc6 {[%clk 0:02:56.7]} 6. Nc3 {[%clk 0:02:58.7]} 6... Nxd4 {[%clk 0:02:55]}
7. exd4 {[%clk 0:02:59.6]} 7... Nf6 {[%clk 0:02:55.6]} 8. Be2 {[%clk 0:03:00.1]}
8... d5 {[%clk 0:02:52.2]} 9. O-O {[%clk 0:02:59.1]} 9... O-O {[%clk 0:02:52.3]}
10. Bf4 {[%clk 0:02:42.8]} 10... dxc4 {[%clk 0:02:51.9]} 11. Bxc4 {[%clk
0:02:42.4]} 11... Bg4 {[%clk 0:02:49]} 12. Qd2 {[%clk 0:02:40.2]} 12... Rc8
{[%clk 0:02:47.6]} 13. Bb3 {[%clk 0:02:33.9]} 13... Qd7 {[%clk 0:02:44.5]} 14.
h3 {[%clk 0:02:30.5]} 14... Bf5 {[%clk 0:02:42.2]} 15. d5 {[%clk 0:02:19.9]}
15... Ne4 {[%clk 0:02:38.1]} 16. Nxe4 {[%clk 0:02:19.2]} 16... Bxe4 {[%clk
0:02:39]} 17. Rfe1 {[%clk 0:02:18]} 17... Bf5 {[%clk 0:02:20.6]} 18. Qb4 {[%clk
0:02:04.7]} 18... Rfe8 {[%clk 0:02:15.2]} 19. Re2 {[%clk 0:02:04.2]} 19... Bf6
{[%clk 0:02:10.6]} 20. Rae1 {[%clk 0:01:53]} 20... a6 {[%clk 0:02:09.2]} 21. g4
{[%clk 0:01:33.5]} 21... Bxg4 {[%clk 0:01:10.5]} 22. hxg4 {[%clk 0:01:30.9]}
22... Qxg4+ {[%clk 0:01:11.4]} 23. Kf1 {[%clk 0:01:08.9]} 23... g5 {[%clk
0:01:03.6]} 24. f3 {[%clk 0:00:36.2]} 24... Qxf4 {[%clk 0:00:45.8]} 25. Qxf4
{[%clk 0:00:31.6]} 25... gxf4 {[%clk 0:00:46.7]} 26. d6 {[%clk 0:00:16.9]} 26...
Rc6 {[%clk 0:00:19.5]} 27. dxe7 {[%clk 0:00:08.4]} 27... h6 {[%clk 0:00:19.7]}
28. Bd5 {[%clk 0:00:06.6]} 28... Rc7 {[%clk 0:00:17.6]} 29. Re4 {[%clk
0:00:05.4]} 29... Bg5 {[%clk 0:00:14.9]} 30. Rc4 {[%clk 0:00:01.6]} 30... Rcxe7
{[%clk 0:00:13.7]} 0-1

[Event "*** Titled Tuesday Blitz"]
[Site "Chess.com"]
[Date "2020.05.05"]
[Round "7"]
[White "svilson23"]
[Black "Apocalyps999"]
[Result "0-1"]
[WhiteElo "2254"]
[BlackElo "2430"]
[TimeControl "180+1"]
[EndTime "11:18:36 PDT"]
[Termination "Apocalyps999 won on time"]

1. d4 {[%clk 0:03:00.9]} 1... d5 {[%clk 0:02:59.2]} 2. Bg5 {[%clk 0:02:59.6]}
2... f6 {[%clk 0:02:58.2]} 3. Bf4 {[%clk 0:02:47.6]} 3... g5 {[%clk 0:02:47.1]}
4. Bg3 {[%clk 0:02:21.3]} 4... c5 {[%clk 0:02:30.7]} 5. h4 {[%clk 0:02:19.4]}
5... g4 {[%clk 0:02:27.8]} 6. e3 {[%clk 0:02:16.9]} 6... Nc6 {[%clk 0:02:25.9]}
7. Bb5 {[%clk 0:02:10]} 7... Nh6 {[%clk 0:02:23.9]} 8. Ne2 {[%clk 0:02:06.2]}
8... Nf5 {[%clk 0:02:22.8]} 9. Nbc3 {[%clk 0:01:55.9]} 9... e6 {[%clk
0:02:11.9]} 10. Bf4 {[%clk 0:01:51]} 10... h5 {[%clk 0:02:04.2]} 11. e4 {[%clk
0:01:45.8]} 11... dxe4 {[%clk 0:01:58.3]} 12. dxc5 {[%clk 0:01:28.5]} 12... Qa5
{[%clk 0:01:42.4]} 13. O-O {[%clk 0:01:09.7]} 13... e5 {[%clk 0:01:39.9]} 14.
Bg3 {[%clk 0:01:03.8]} 14... Bxc5 {[%clk 0:01:26.3]} 15. Qd5 {[%clk 0:01:00.5]}
15... Qb6 {[%clk 0:01:13]} 16. Bc4 {[%clk 0:00:46.2]} 16... Nd6 {[%clk
0:00:48.1]} 17. Nxe4 {[%clk 0:00:42.1]} 17... Nxc4 {[%clk 0:00:47.3]} 18. Nxf6+
{[%clk 0:00:40.9]} 18... Ke7 {[%clk 0:00:46.9]} 19. Qxc4 {[%clk 0:00:34.2]}
19... Kxf6 {[%clk 0:00:44.7]} 20. Nc3 {[%clk 0:00:34.4]} 20... Kg7 {[%clk
0:00:34.6]} 21. Nd5 {[%clk 0:00:25.9]} 21... Qa5 {[%clk 0:00:33.7]} 22. Qe4
{[%clk 0:00:21.3]} 22... Bd6 {[%clk 0:00:27.4]} 23. Rad1 {[%clk 0:00:10.5]}
23... Be6 {[%clk 0:00:26.6]} 24. Ne3 {[%clk 0:00:08.5]} 24... Rad8 {[%clk
0:00:25.4]} 25. Nf5+ {[%clk 0:00:07.7]} 25... Bxf5 {[%clk 0:00:21.8]} 26. Qxf5
{[%clk 0:00:08]} 26... Be7 {[%clk 0:00:19.5]} 27. b4 {[%clk 0:00:07.5]} 27...
Qxb4 {[%clk 0:00:17.1]} 28. Bxe5+ {[%clk 0:00:06.7]} 28... Nxe5 {[%clk
0:00:17.1]} 29. Qxe5+ {[%clk 0:00:06.1]} 29... Bf6 {[%clk 0:00:17.7]} 30. Qc7+
{[%clk 0:00:05.7]} 30... Kg6 {[%clk 0:00:16.7]} 31. Rxd8 {[%clk 0:00:01.1]}
31... Rxd8 {[%clk 0:00:17.6]} 0-1

[Event "*** Titled Tuesday Blitz"]
[Site "Chess.com"]
[Date "2020.05.05"]
[Round "7"]
[White "GigaQuparadze"]
[Black "BillieKimbah"]
[Result "1-0"]
[WhiteElo "2841"]
[BlackElo "2866"]
[TimeControl "180+1"]
[EndTime "11:18:39 PDT"]
[Termination "GigaQuparadze won on time"]

1. e4 {[%clk 0:03:00.9]} 1... e5 {[%clk 0:03:00.2]} 2. Nf3 {[%clk 0:03:00.3]}
2... Nc6 {[%clk 0:03:00.3]} 3. Bb5 {[%clk 0:03:00.3]} 3... a6 {[%clk 0:03:00.1]}
4. Ba4 {[%clk 0:03:00.4]} 4... Nf6 {[%clk 0:03:00.2]} 5. d3 {[%clk 0:03:00.4]}
5... b5 {[%clk 0:02:58.1]} 6. Bb3 {[%clk 0:03:00.3]} 6... Bc5 {[%clk 0:02:58.6]}
7. a4 {[%clk 0:02:59.6]} 7... Rb8 {[%clk 0:02:57.9]} 8. Nc3 {[%clk 0:02:59]}
8... d6 {[%clk 0:02:53.7]} 9. Nd5 {[%clk 0:02:54.2]} 9... h6 {[%clk 0:02:51.8]}
10. axb5 {[%clk 0:02:52.8]} 10... axb5 {[%clk 0:02:50.4]} 11. O-O {[%clk
0:02:52.8]} 11... O-O {[%clk 0:02:48.5]} 12. c3 {[%clk 0:02:52.5]} 12... Nxd5
{[%clk 0:02:46.1]} 13. Bxd5 {[%clk 0:02:53.4]} 13... Ne7 {[%clk 0:02:45.9]} 14.
d4 {[%clk 0:02:49.5]} 14... Nxd5 {[%clk 0:02:32.6]} 15. dxc5 {[%clk 0:02:48.5]}
15... Nf6 {[%clk 0:02:32.3]} 16. cxd6 {[%clk 0:02:47.7]} 16... cxd6 {[%clk
0:02:32]} 17. Nd2 {[%clk 0:02:46.6]} 17... Bb7 {[%clk 0:02:30.2]} 18. Re1 {[%clk
0:02:46.6]} 18... d5 {[%clk 0:02:29.9]} 19. exd5 {[%clk 0:02:45.9]} 19... Qxd5
{[%clk 0:02:29.4]} 20. Nf3 {[%clk 0:02:46.1]} 20... Qxd1 {[%clk 0:02:25.1]} 21.
Rxd1 {[%clk 0:02:47]} 21... Bxf3 {[%clk 0:02:25]} 22. gxf3 {[%clk 0:02:47.9]}
22... Rfd8 {[%clk 0:02:20.7]} 23. Be3 {[%clk 0:02:47.3]} 23... Nd5 {[%clk
0:02:18.1]} 24. Kf1 {[%clk 0:02:36.5]} 24... f6 {[%clk 0:02:17.4]} 25. Ke2
{[%clk 0:02:36.3]} 25... Rd7 {[%clk 0:02:11.4]} 26. Ra5 {[%clk 0:02:21.2]} 26...
Rbb7 {[%clk 0:01:39.1]} 27. Rd2 {[%clk 0:02:02.3]} 27... Kf7 {[%clk 0:01:37.4]}
28. Ra8 {[%clk 0:01:57.9]} 28... Ke6 {[%clk 0:01:35.9]} 29. Re8+ {[%clk
0:01:57]} 29... Kf5 {[%clk 0:01:35.4]} 30. Rc8 {[%clk 0:01:56.4]} 30... Rd6
{[%clk 0:01:11.9]} 31. Rc5 {[%clk 0:01:54.8]} 31... Ke6 {[%clk 0:01:11.7]} 32.
Rd1 {[%clk 0:01:47.8]} 32... Ne7 {[%clk 0:01:04.3]} 33. Rxd6+ {[%clk 0:01:40.7]}
33... Kxd6 {[%clk 0:01:05.2]} 34. b4 {[%clk 0:01:40.9]} 34... h5 {[%clk
0:01:02.5]} 35. f4 {[%clk 0:01:40.3]} 35... Nd5 {[%clk 0:00:57.6]} 36. fxe5+
{[%clk 0:01:40]} 36... fxe5 {[%clk 0:00:58.5]} 37. Kd3 {[%clk 0:01:39.8]} 37...
g6 {[%clk 0:00:53.4]} 38. Bg5 {[%clk 0:01:27.4]} 38... Rf7 {[%clk 0:00:34.5]}
39. Ke4 {[%clk 0:01:25.4]} 39... Nf6+ {[%clk 0:00:23.7]} 40. Bxf6 {[%clk
0:01:25.1]} 40... Rxf6 {[%clk 0:00:24.6]} 41. Rxb5 {[%clk 0:01:21.2]} 41... Rf4+
{[%clk 0:00:16]} 42. Ke3 {[%clk 0:01:20.7]} 42... Rc4 {[%clk 0:00:15.1]} 43. Kd3
{[%clk 0:01:20.5]} 43... Rh4 {[%clk 0:00:10.5]} 44. Rb6+ {[%clk 0:01:18.6]}
44... Kc7 {[%clk 0:00:09.1]} 45. Rxg6 {[%clk 0:01:18.3]} 45... Rxh2 {[%clk
0:00:09.3]} 46. Rf6 {[%clk 0:01:18.2]} 46... h4 {[%clk 0:00:05.5]} 47. Ke4
{[%clk 0:01:13.9]} 47... Rh1 {[%clk 0:00:03.4]} 48. Kxe5 {[%clk 0:01:11.6]}
48... h3 {[%clk 0:00:03.4]} 49. Rh6 {[%clk 0:01:10.9]} 49... h2 {[%clk 0:00:01]}
50. Kf4 {[%clk 0:01:10.5]} 1-0

[Event "*** Titled Tuesday Blitz"]
[Site "Chess.com"]
[Date "2020.05.05"]
[Round "7"]
[White "cuprichanin"]
[Black "Oglob71"]
[Result "1/2-1/2"]
[WhiteElo "2335"]
[BlackElo "2471"]
[TimeControl "180+1"]
[EndTime "11:18:43 PDT"]
[Termination "Game drawn by stalemate"]

1. Nc3 {[%clk 0:03:00.9]} 1... d5 {[%clk 0:02:54.2]} 2. e4 {[%clk 0:02:55.1]}
2... c6 {[%clk 0:02:54.3]} 3. Nf3 {[%clk 0:02:51.8]} 3... Bg4 {[%clk 0:02:51.1]}
4. h3 {[%clk 0:02:50.7]} 4... Bxf3 {[%clk 0:02:50.8]} 5. Qxf3 {[%clk 0:02:51.6]}
5... e6 {[%clk 0:02:51.3]} 6. d3 {[%clk 0:02:47.2]} 6... Nd7 {[%clk 0:02:49.6]}
7. Qg3 {[%clk 0:02:30.6]} 7... g6 {[%clk 0:02:49.1]} 8. f4 {[%clk 0:02:28.2]}
8... Bg7 {[%clk 0:02:48.6]} 9. Be2 {[%clk 0:02:24.3]} 9... Ne7 {[%clk
0:02:43.5]} 10. h4 {[%clk 0:02:17.2]} 10... Qb6 {[%clk 0:02:37.6]} 11. Nd1
{[%clk 0:01:56.5]} 11... O-O-O {[%clk 0:02:34]} 12. h5 {[%clk 0:01:50.3]} 12...
f5 {[%clk 0:02:31.9]} 13. h6 {[%clk 0:01:45.9]} 13... Bd4 {[%clk 0:02:26.6]} 14.
c3 {[%clk 0:01:32.1]} 14... Bc5 {[%clk 0:02:26.6]} 15. e5 {[%clk 0:01:31.8]}
15... Qc7 {[%clk 0:02:21]} 16. d4 {[%clk 0:01:28.6]} 16... Bb6 {[%clk
0:02:21.1]} 17. a4 {[%clk 0:01:25.7]} 17... c5 {[%clk 0:02:17.3]} 18. Be3 {[%clk
0:01:20.2]} 18... cxd4 {[%clk 0:02:07.7]} 19. cxd4 {[%clk 0:01:21.1]} 19... Ba5+
{[%clk 0:02:03.8]} 20. Kf2 {[%clk 0:01:19.9]} 20... Nc6 {[%clk 0:02:03.2]} 21.
Nc3 {[%clk 0:01:14.4]} 21... a6 {[%clk 0:02:00.8]} 22. Rhc1 {[%clk 0:01:10.9]}
22... Kb8 {[%clk 0:02:01.1]} 23. Nb5 {[%clk 0:00:44.6]} 23... Qb6 {[%clk
0:02:00.5]} 24. Nd6 {[%clk 0:00:44.1]} 24... Rhf8 {[%clk 0:01:46.2]} 25. Rab1
{[%clk 0:00:36.9]} 25... Bb4 {[%clk 0:01:46.4]} 26. Qh4 {[%clk 0:00:25.9]} 26...
Ka8 {[%clk 0:01:25.9]} 27. Qh1 {[%clk 0:00:16.7]} 27... Bxd6 {[%clk 0:01:21]}
28. exd6 {[%clk 0:00:16.1]} 28... Nb4 {[%clk 0:01:21.2]} 29. Qe1 {[%clk
0:00:12.3]} 29... Qc6 {[%clk 0:01:20.6]} 30. Rxc6 {[%clk 0:00:11.2]} 30... Nxc6
{[%clk 0:01:20.6]} 31. b4 {[%clk 0:00:10.4]} 31... Nf6 {[%clk 0:01:17.6]} 32. b5
{[%clk 0:00:09.8]} 32... Ne4+ {[%clk 0:01:18]} 33. Kg1 {[%clk 0:00:09.8]} 33...
Nb8 {[%clk 0:01:14.1]} 34. Qa5 {[%clk 0:00:05.4]} 34... Rxd6 {[%clk 0:01:12.7]}
35. bxa6 {[%clk 0:00:05.3]} 35... bxa6 {[%clk 0:01:11.8]} 36. Rb6 {[%clk
0:00:05.1]} 36... Ka7 {[%clk 0:01:04.4]} 37. Rxd6 {[%clk 0:00:03.9]} 37... Nxd6
{[%clk 0:01:04.9]} 38. Qc5+ {[%clk 0:00:04]} 38... Kb7 {[%clk 0:01:03.2]} 39.
Qxd6 {[%clk 0:00:04.9]} 39... Rc8 {[%clk 0:01:02.6]} 40. Qb4+ {[%clk 0:00:04.9]}
40... Ka7 {[%clk 0:01:01.1]} 41. Qe7+ {[%clk 0:00:05.8]} 41... Kb6 {[%clk
0:00:59.6]} 42. Qxh7 {[%clk 0:00:05.6]} 42... Rc3 {[%clk 0:01:00.1]} 43. Qxg6
{[%clk 0:00:04.5]} 43... Rxe3 {[%clk 0:01:00.7]} 44. h7 {[%clk 0:00:05.4]} 44...
Nc6 {[%clk 0:01:00.9]} 45. h8=Q {[%clk 0:00:05.3]} 45... Nxd4 {[%clk 0:01:01.5]}
46. Qxd4+ {[%clk 0:00:04.5]} 46... Ka5 {[%clk 0:01:02.1]} 47. Qxe3 {[%clk
0:00:05]} 47... Kb4 {[%clk 0:01:01.9]} 48. Qgxe6 {[%clk 0:00:05.9]} 48... d4
{[%clk 0:01:02.2]} 49. Qxd4+ {[%clk 0:00:05.6]} 49... Ka5 {[%clk 0:01:02.8]} 50.
Qee3 {[%clk 0:00:05.8]} 1/2-1/2